fUST/lending_fUST_20251214
["ID","MTS","AMOUNT","RATE_DAILY","PERIOD"]
[398470573,1765699833108,-500.0,0.00013699,2]
[398470574,1765699833117,-500.0,0.00013699,2]
[398470575,1765699833130,-500.0,0.00013699,2]
[398470576,1765699833139,-500.0,0.00013699,2]
[398470577,1765699833148,-500.0,0.00013699,2]
[398470578,1765699833157,-500.0,0.00013699,2]
[398470579,1765699833166,-267.24253086,0.00013699,2]
[398470580,1765699833174,-403.5096,0.00013699,2]
[398470581,1765699833184,-301.77160815,0.00013699,2]
[398470582,1765699833193,-500.0,0.00013699,2]
[398470583,1765699833202,-500.0,0.00013699,2]
[398470584,1765699833211,-1000.0,0.00013821,2]
[398470585,1765699833222,-534.7555565,0.00013821,2]
[398470586,1765699833231,-1000.0,0.00013821,2]
[398470587,1765699833240,-1000.0,0.00013821,2]
[398470588,1765699833249,-1000.0,0.00013821,2]
[398470589,1765699833259,-1000.0,0.00013821,2]
[398470590,1765699833268,-1000.0,0.00013821,2]
[398470591,1765699833277,-1000.0,0.00013821,2]
[398470592,1765699833286,-1000.0,0.00013821,2]
[398470593,1765699833294,-1000.0,0.00013821,2]
[398470594,1765699833303,-300.0,0.00013968,2]
[398470595,1765699833313,-300.0,0.00013968,2]
[398470596,1765699833321,-300.0,0.00013968,2]
[398470597,1765699833332,-300.0,0.00013968,2]
[398470598,1765699833341,-300.0,0.00013968,2]
[398470599,1765699833351,-300.0,0.00013968,2]
[398470600,1765699833360,-300.0,0.00013968,2]
[398470601,1765699833370,-300.0,0.00013968,2]
[398470602,1765699833379,-300.0,0.00013968,2]
[398470603,1765699833390,-300.0,0.00013968,2]
[398470604,1765699833399,-300.0,0.00013968,2]
[398470605,1765699833410,-300.0,0.00013968,2]
[398470606,1765699833420,-300.0,0.00013968,2]
[398470607,1765699833430,-300.0,0.00013968,2]
[398470608,1765699833440,-300.0,0.00013968,2]
[398470609,1765699833452,-600.0,0.00013968,2]
[398470610,1765699833461,-600.0,0.00014221,2]
[398470611,1765699833470,-1000.0,0.00014247,2]
[398470612,1765699833479,-1019.05511874,0.00014247,2]
[398470613,1765699833488,-1000.0,0.00014247,2]
[398470614,1765699833498,-1000.0,0.00014247,2]
[398470615,1765699833507,-1021.52568945,0.00014247,2]
[398470616,1765699833516,-1000.0,0.00014247,2]
[398470617,1765699833525,-1000.0,0.00014247,2]
[398470618,1765699833535,-318.25426248,0.00014247,2]
[398470619,1765699833544,-1000.0,0.00014247,2]
[398470620,1765699833553,-1000.0,0.00014247,2]
[398470621,1765699833562,-1000.0,0.00014247,2]
[398470622,1765699833571,-1000.0,0.00014247,2]
[398470623,1765699833581,-1000.0,0.00014247,2]
[398470624,1765699833590,-287.41560507,0.00014247,2]
[398470625,1765699833599,-1000.0,0.00014247,2]
[398470626,1765699833608,-1000.0,0.00014247,2]
[398470627,1765699833618,-1000.0,0.00014247,2]
[398470628,1765699833628,-1000.0,0.00014247,2]
[398470629,1765699833638,-1000.0,0.00014247,2]
[398470630,1765699833647,-1000.0,0.00014247,2]
[398470631,1765699833656,-1000.0,0.00014247,2]
[398470632,1765699833665,-1000.0,0.00014247,2]
[398470633,1765699833676,-1000.0,0.00014247,2]
[398470634,1765699833686,-407.21339915,0.00014247,2]
[398470635,1765699833695,-1000.0,0.00014247,2]
[398470636,1765699833705,-1500.0,0.00014368,2]
[398470637,1765699833715,-1500.0,0.00014368,2]
[398470638,1765699833724,-1500.0,0.00014368,2]
[398470639,1765699833733,-1500.0,0.00014368,2]
[398470640,1765699833743,-1500.0,0.00014368,2]
[398470641,1765699833752,-1500.0,0.00014368,2]
[398470642,1765699833762,-1500.0,0.00014368,2]
[398470643,1765699833771,-1500.0,0.00014368,2]
[398470644,1765699833786,-1500.0,0.00014368,2]
[398470645,1765699833795,-900.0,0.00014768,2]
[398470646,1765699833806,-216.14672253,0.00014795,2]
[398470647,1765699833816,-1500.0,0.00014795,2]
[398470648,1765699833826,-1069.28452497,0.00014795,2]
[398470649,1765699833836,-612.74526678,0.00014795,2]
[398470650,1765699833846,-150.8061872,0.00014795,2]
[398470651,1765699833856,-1500.0,0.00014795,2]
[398470652,1765699833865,-1500.0,0.00014795,2]
[398470653,1765699833876,-1500.0,0.00014795,2]
[398470654,1765699833886,-1500.0,0.00014795,2]
[398470655,1765699833896,-1500.0,0.00014795,2]
[398470656,1765699833907,-496.88675893,0.00014795,2]
[398470657,1765699833917,-1500.0,0.00014795,2]
[398470658,1765699833927,-1500.0,0.00014795,2]
[398470659,1765699833936,-432.59065784,0.00014795,2]
[398470660,1765699833945,-1500.0,0.00014795,2]
[398470661,1765699833955,-1500.0,0.00014795,2]
[398470662,1765699833965,-1500.0,0.00014795,2]
[398470663,1765699833977,-1500.0,0.00014795,2]
[398470664,1765699833986,-1500.0,0.00014795,2]
[398470665,1765699833995,-1121.46341295,0.00014795,2]
[398470666,1765699834004,-2000.0,0.00014916,2]
[398470667,1765699834013,-2000.0,0.00014916,2]
[398470668,1765699834022,-2000.0,0.00014916,2]
[398470669,1765699834031,-2000.0,0.00014916,2]
[398470670,1765699834041,-2000.0,0.00014916,2]
[398470671,1765699834050,-2000.0,0.00014916,2]
[398470672,1765699834059,-2000.0,0.00014916,2]
[398470673,1765699834071,-2000.0,0.00014916,2]
[398470674,1765699834085,-2000.0,0.00014916,2]
[398470675,1765699834095,-217.0,0.00015006,2]
[398470676,1765699834106,-800.0,0.00015068,2]
[398470677,1765699834118,-1200.0,0.00015316,2]
[398470678,1765699834128,-846.5747,0.00015342,2]
[398470679,1765699834137,-2000.0,0.00015342,2]
[398470680,1765699834147,-2000.0,0.00015342,2]
[398470681,1765699834161,-1749.78466947,0.00015342,2]
[398470682,1765699834171,-1500.0,0.00015342,2]
[398470683,1765699834183,-496.97342959,0.00015342,2]
[398470684,1765699834194,-2000.0,0.00015342,2]
[398470685,1765699834203,-2000.0,0.00015342,2]
[398470686,1765699834212,-704.01655414,0.00015342,2]
[398470687,1765699834221,-2000.0,0.00015342,2]
[398470688,1765699834231,-720.0,0.00015364,2]
[398470689,1765699834241,-2500.0,0.00015464,2]
[398470690,1765699834250,-419.05612829,0.00015464,2]
[398470691,1765699834259,-2500.0,0.00015464,2]
[398470692,1765699834267,-2500.0,0.00015464,2]
[398470693,1765699834276,-2500.0,0.00015464,2]
[398470694,1765699834285,-1000.0,0.00015464,2]
[398470695,1765699834294,-1500.0,0.00015464,2]
[398470696,1765699834304,-1000.0,0.00015464,2]
[398470697,1765699834313,-1000.0,0.00015464,2]
[398470698,1765699834323,-232.22092508,0.00015616,2]
[398470699,1765699834334,-3110.22723041,0.00015632,2]
[398470700,1765699834343,-553.86697377,0.00015753,2]
[398470701,1765699834352,-1500.0,0.00015864,2]
[398470702,1765699834363,-2500.0,0.0001589,2]
[398470703,1765699834373,-1371.56048824,0.0001589,2]
[398470704,1765699834383,-2500.0,0.0001589,2]
[398470705,1765699834394,-2500.0,0.0001589,2]
[398470706,1765699834405,-2500.0,0.0001589,2]
[398470707,1765699834416,-2500.0,0.00016012,2]
[398470708,1765699834427,-2500.0,0.00016012,2]
[398470709,1765699834438,-2000.0,0.00016012,2]
[398470710,1765699834449,-2000.0,0.00016012,2]
[398470711,1765699834459,-1600.0,0.00016164,2]
[398470712,1765699834470,-864.0,0.00016901,2]
[398470713,1765699834479,-267.64445602,0.00017616,2]
[398470714,1765699834489,-3110.22723041,0.00017667,2]
[398470715,1765699834499,-553.86697377,0.00017813,2]
[398470716,1765699834508,-1000.0,0.00018591,10]
[398470717,1765699834518,-500.0,0.00019,2]
[398470718,1765699834528,-500.0,0.00019,7]
[398470719,1765699834537,-500.0,0.00019,2]
[398470720,1765699834547,-339.07,0.00019,7]
[398470721,1765699834556,-198.08824625,0.00019553,2]
[398470722,1765699834566,-360.91,0.000196,2]
[398470723,1765699834575,-303.06798697,0.00019616,2]
[398470724,1765699834584,-3110.22723041,0.00019703,2]
[398470725,1765699834594,-553.86697377,0.00019873,2]
[398470726,1765699834603,-262.72,0.0001995,30]
[398470727,1765699834613,-447.0,0.0002,7]
[398470728,1765699834622,-261.830516,0.00020187,2]
[398470729,1765699834631,-800.0,0.00020273,7]
[398470730,1765699834640,-1360.0,0.00020361,2]
[398470731,1765699834650,-415.0,0.00020361,2]
[398470732,1765699834659,-1000.0,0.0002045,10]
[398470733,1765699834669,-244.0,0.0002045,10]
[398470734,1765699834678,-553.64373807,0.0002063,2]
[398470735,1765699834687,-380.973,0.0002068,2]
[398470736,1765699834697,-262.72,0.000209,30]
[398470737,1765699834707,-201.71354004,0.00020952,2]
[398470738,1765699834717,-91207.16589597,0.0002099,2]
[398470739,1765699834731,-1474.28135078,0.0002099,2]
[398470743,1765699838577,-6605.61827665,0.0002099,2]
[398470744,1765699838588,-712.9344766,0.0002099,2]
[398470745,1765699838597,-574.12855637,0.00021178,2]
[398470746,1765699838606,-28240.4719541,0.0002128,2]
[398470747,1765699838616,-44742.83825526,0.0002128,2]
[398470749,1765699838626,-1189.61098215,0.0002128,2]
[398470803,1765699840826,-26922.68016361,0.0002128,2]
[398470804,1765699840871,-41613.54921853,0.0002128,2]
[398470842,1765699876952,500.0,0.00013273,2]
[398470843,1765699882438,500.0,0.00013273,2]
[398470844,1765699929904,500.0,0.00013273,2]
[398470845,1765699931793,814.72741913,0.000134,2]
[398470846,1765699931819,5451.27258087,0.000134,2]
[398470847,1765699933970,607.64561163,0.00013273,2]
[398470848,1765699936676,500.0,0.00013273,2]
[398470849,1765699986786,500.0,0.00013273,2]
[398470850,1765699987521,500.0,0.00013273,2]
[398470853,1765700044397,500.0,0.00013273,2]
[398470854,1765700051721,1941.0918075,0.000134,2]
[398470855,1765700051743,529.9081925,0.000134,2]
[398470856,1765700164688,1263.0,0.000134,2]
[398470857,1765700227175,500.0,0.00013273,2]
[398470858,1765700275802,-500.0,0.00013692,2]
[398470859,1765700275825,-500.0,0.00013692,2]
[398470860,1765700275848,-500.0,0.00013692,2]
[398470861,1765700275869,-500.0,0.00013692,2]
[398470862,1765700275891,-500.0,0.00013692,2]
[398470863,1765700275912,-500.0,0.00013692,2]
[398470864,1765700275934,-500.0,0.00013692,2]
[398470865,1765700275955,-500.0,0.00013692,2]
[398470866,1765700275976,-500.0,0.00013692,2]
[398470867,1765700275996,-500.0,0.00013692,2]
[398470868,1765700276018,-450.0,0.00013692,2]
[398470869,1765700276038,-500.0,0.00013692,2]
[398470870,1765700276059,-500.0,0.00013692,2]
[398470871,1765700276079,-500.0,0.00013692,2]
[398470872,1765700276099,-500.0,0.00013692,2]
[398470873,1765700276119,-500.0,0.00013692,2]
[398470874,1765700276141,-500.0,0.00013692,2]
[398470875,1765700276162,-500.0,0.00013692,2]
[398470876,1765700276183,-500.0,0.00013692,2]
[398470877,1765700276203,-500.0,0.00013692,2]
[398470878,1765700276222,-500.0,0.00013692,2]
[398470879,1765700276243,-500.0,0.00013692,2]
[398470880,1765700276262,-500.0,0.00013692,2]
[398470881,1765700276282,-589.51994103,0.00013692,2]
[398470882,1765700276302,-500.0,0.00013692,2]
[398470883,1765700276322,-500.0,0.00013692,2]
[398470884,1765700276343,-500.0,0.00013692,2]
[398470885,1765700276364,-500.0,0.00013692,2]
[398470886,1765700276384,-500.0,0.00013692,2]
[398470887,1765700276406,-500.0,0.00013692,2]
[398470888,1765700276432,-500.0,0.00013692,2]
[398470889,1765700276454,-500.0,0.00013692,2]
[398470890,1765700276476,-500.0,0.00013692,2]
[398470891,1765700276498,-514.15133883,0.00013692,2]
[398470892,1765700276519,-500.0,0.00013692,2]
[398470893,1765700276541,-500.0,0.00013692,2]
[398470894,1765700276563,-500.0,0.00013692,2]
[398470895,1765700276584,-500.0,0.00013692,2]
[398470896,1765700276606,-500.0,0.00013692,2]
[398470897,1765700276627,-500.0,0.00013692,2]
[398470898,1765700276648,-500.0,0.00013692,2]
[398470899,1765700276670,-500.0,0.00013692,2]
[398470900,1765700276691,-500.0,0.00013692,2]
[398470901,1765700276712,-500.0,0.00013692,2]
[398470902,1765700276733,-500.0,0.00013692,2]
[398470903,1765700276754,-500.0,0.00013692,2]
[398470904,1765700276776,-446.32872014,0.00013692,2]
[398470947,1765701031748,-300.0,0.00013673,2]
[398470950,1765701031758,-615.0,0.00013673,2]
[398470952,1765701031767,-187.81812715,0.00013684,2]
[398470954,1765701031776,-500.0,0.00013699,2]
[398470955,1765701031785,-64.95811215,0.00013968,2]
[398470997,1765701037802,-235.04188785,0.00013968,2]
[398470998,1765701037811,-247.19976394,0.00013968,2]
[398470999,1765701037827,-52.80023606,0.00013968,2]
[398471000,1765701037836,-300.0,0.00013968,2]
[398471001,1765701037846,-300.0,0.00013968,2]
[398471002,1765701037856,-300.0,0.00013968,2]
[398471003,1765701037866,-300.0,0.00013968,2]
[398471004,1765701037880,-300.0,0.00013968,2]
[398471005,1765701037890,-212.44961797,0.00013968,2]
[398471006,1765701037914,-87.55038203,0.00013968,2]
[398471007,1765701037924,-300.0,0.00013968,2]
[398471008,1765701037933,-300.0,0.00013968,2]
[398471009,1765701037942,-300.0,0.00013968,2]
[398471010,1765701037952,-300.0,0.00013968,2]
[398471011,1765701037961,-300.0,0.00013968,2]
[398471012,1765701037971,-300.0,0.00013968,2]
[398471013,1765701037980,-300.0,0.00013968,2]
[398471014,1765701037989,-368.17728667,0.00013968,2]
[398471053,1765701039972,-231.82271333,0.00013968,2]
[398471054,1765701039982,-286.16019781,0.00014247,2]
[398471056,1765701039991,-209.73185544,0.00015,2]
[398471058,1765701040002,-429.53457949,0.00015,2]
[398471060,1765701040012,-288.29342051,0.00015364,2]
[398471075,1765701042939,-431.70657949,0.00015364,2]
[398471076,1765701042948,-110.70342051,0.00015684,2]
[398471081,1765701043405,-2.48293227,0.00015684,2]
[398471082,1765701043420,-108.43903725,0.00015684,2]
[398471083,1765701043432,-500.0,0.00015787,2]
[398471084,1765701043444,-500.0,0.00015787,2]
[398471085,1765701043458,-500.0,0.00015787,2]
[398471086,1765701043469,-621.05777123,0.00015787,2]
[398471087,1765701043479,-394.71928575,0.00015787,2]
[398471088,1765701043489,-179.42298541,0.00015788,2]
[398471089,1765701043500,-221.94549399,0.00015906,2]
[398471090,1765701043511,-215.08595385,0.00016,2]
[398471091,1765701043522,-864.0,0.00016901,2]
[398471092,1765701043533,-208.176897,0.00017437,2]
[398471093,1765701043544,-255.43265292,0.00017684,2]
[398471094,1765701043556,-221.94549399,0.00018019,2]
[398471095,1765701043567,-216.71153545,0.00018039,2]
[398471096,1765701043579,-247.67032623,0.00018039,2]
[398471097,1765701043591,-386.59789985,0.00018039,2]
[398471098,1765701043604,-1000.0,0.00018591,10]
[398471099,1765701043616,-198.08824625,0.00019526,2]
[398471100,1765701043627,-289.2399158,0.00019684,2]
[398471101,1765701043637,-500.0,0.0002,2]
[398471102,1765701043647,-221.94549399,0.00020132,2]
[398471103,1765701043657,-700.0,0.00020273,7]
[398471104,1765701043667,-1000.0,0.0002036,2]
[398471105,1765701043679,-1000.0,0.0002045,10]
[398471106,1765701043692,-244.0,0.0002045,10]
[398471107,1765701043704,-553.64373807,0.00020459,2]
[398471108,1765701043716,-330.5757607,0.00020548,2]
[398471109,1765701043725,-574.12855637,0.00021007,2]
[398471110,1765701043736,-1555.11361524,0.0002108,2]
[398471111,1765701043748,-415.0,0.00021162,2]
[398471112,1765701043758,-337.61,0.0002117,2]
[398471113,1765701043769,-435.36,0.0002117,10]
[398471114,1765701043779,-500.0,0.00021179,2]
[398471115,1765701043789,-348.37596167,0.00021179,2]
[398471116,1765701043799,-31670.2429276,0.0002118,2]
[398471117,1765701043812,-5669.61570614,0.0002118,2]
[398471119,1765701045767,-423.3297,0.00021007,2]
[398471120,1765701045779,-2054.58680036,0.0002118,2]
[398471121,1765701045834,-40876.85458926,0.0002118,2]
[398471122,1765701045847,-16140.72126267,0.0002118,2]
[398471123,1765701045862,-452.60481759,0.0002118,2]
[398471124,1765701046677,-1438.72,0.0002118,2]
[398471135,1765701643774,7707.1018075,0.00013418,2]
[398471136,1765701643795,2292.8981925,0.00013418,2]
[398471137,1765701652264,10000.0,0.00014,30]
[398471138,1765701659215,7707.1118075,0.00013418,2]
[398471139,1765701659238,2292.8881925,0.00013418,2]
[398471140,1765701667050,-81.26419457,0.00013699,2]
[398471141,1765701670029,6140.72,0.00014,30]
[398471142,1765701686576,6140.71,0.00013418,2]
[398471143,1765701708192,150.0,8.142e-05,2]
[398471144,1765701708369,150.0,8.529e-05,2]
[398471145,1765701737678,-87.47161086,0.00013699,2]
[398471146,1765701737705,-235.647464,0.00013699,2]
[398471147,1765701737730,-500.0,0.00013699,2]
[398471148,1765701737754,-615.0,0.00013699,2]
[398471149,1765701756284,500.0,0.00013698,2]
[398471150,1765701768057,-199.1082504,0.00015699,2]
[398471188,1765702231855,-167.01044443,0.0001867,2]
[398471189,1765702231865,-199.55494547,0.0001899,2]
[398471282,1765702242999,-23.92524251,0.0001899,2]
[398471283,1765702243010,-2004.45,0.00019,30]
[398471284,1765702243020,-235.647464,0.00020187,2]
[398471285,1765702243031,-198.08824625,0.00020252,2]
[398471286,1765702243041,-800.0,0.00020273,7]
[398471287,1765702243052,-197.07232443,0.0002067,2]
[398471288,1765702243062,-154.96880953,0.00020784,2]
[398471289,1765702243072,-1491.12413328,0.00020785,2]
[398471291,1765702246027,-1502.95,0.00020785,2]
[398471300,1765702262493,157.85,0.000134,2]
[398471301,1765702322525,157.85,0.000134,2]
[398471302,1765702322831,157.85,0.00014,2]
[398471303,1765702348634,150.0,9.11e-05,2]
[398471304,1765702349043,150.0,9.544e-05,2]
[398471305,1765702349446,150.0,9.977e-05,2]
[398471306,1765702349849,150.0,0.00010411,2]
[398471307,1765702350279,166.93,0.00010845,2]
[398471308,1765702350690,200.32,0.00011279,2]
[398471309,1765702351120,233.7,0.00011713,2]
[398471310,1765702351527,267.09,0.00012146,2]
[398471311,1765702351952,300.48,0.0001258,2]
[398471312,1765702352406,333.86,0.00013014,2]
[398471313,1765702420246,150.0,0.00010159,2]
[398471314,1765702420648,150.0,0.00010643,2]
[398471315,1765702421038,150.0,0.00011127,2]
[398471316,1765702555303,241.0,0.00016,2]
[398471357,1765703432019,-198.08824625,0.0001974,2]
[398471359,1765703432028,-122.91175375,0.00019799,2]
[398471435,1765703438042,-160.08824625,0.00019799,2]
[398471436,1765703438052,-792.0,0.00019799,2]
[398471437,1765703438061,-593.86317316,0.00019799,2]
[398471438,1765703438070,-187.77029874,0.000198,2]
[398471439,1765703438097,-1346.06238472,0.000198,2]
[398471440,1765703438107,-1853.76936271,0.000198,2]
[398471444,1765703440299,-32676.64445898,0.000198,2]
[398471446,1765703443226,-557.63393988,0.00019712,2]
[398471447,1765703443236,-163.26878905,0.000198,2]
[398471448,1765703443245,-59.85477373,0.000198,2]
[398471449,1765703443333,-300.0,0.000198,2]
[398471451,1765703446265,-4689.27203357,0.000198,2]
[398471452,1765703635374,150.0,0.00010795,2]
[398471453,1765703635620,150.0,0.0001131,2]
[398471454,1765703636058,150.0,0.00011824,2]
[398471455,1765703636491,177.85,0.00012338,2]
[398471456,1765703636867,222.32,0.00012852,2]
[398471457,1765703637272,266.78,0.00013366,2]
[398471458,1765703637664,311.24,0.0001388,2]
[398471459,1765703638095,355.71,0.00014394,2]
[398471460,1765703638519,400.17,0.00014908,2]
[398471461,1765703638908,444.63,0.00015422,2]
[398471462,1765703642926,157.85,0.000134,2]
[398471463,1765703643237,157.85,0.00014,2]
[398471464,1765703707277,150.0,0.00010665,2]
[398471465,1765703708226,150.0,0.00011173,2]
[398471466,1765703708689,150.0,0.0001168,2]
[398471467,1765703709617,150.0,0.00012188,2]
[398471468,1765703710032,150.0,0.00012696,2]
[398471469,1765704090316,212.082717,0.00013699,2]
[398471474,1765704209686,212.64,0.00016,2]
[398471476,1765704218716,2613.957283,0.000136,2]
[398471477,1765704218737,10000.01,0.000136,2]
[398471478,1765704218757,10000.01,0.000136,2]
[398471479,1765704218778,10000.01,0.000136,2]
[398471480,1765704218799,10000.01,0.000136,2]
[398471481,1765704218820,10000.01,0.000136,2]
[398471482,1765704218840,10000.01,0.000136,2]
[398471483,1765704218861,10000.01,0.000136,2]
[398471484,1765704218882,10000.01,0.000136,2]
[398471485,1765704218902,10000.01,0.000136,2]
[398471486,1765704218923,1859.19820179,0.000136,2]
[398471487,1765704286246,150.0,9.095e-05,2]
[398471488,1765704286674,150.0,9.528e-05,2]
[398471489,1765704287082,218.94,9.961e-05,2]
[398471490,1765704287482,291.92,0.00010394,2]
[398471491,1765704287895,364.9,0.00010827,2]
[398471492,1765704288342,437.88,0.00011261,2]
[398471493,1765704289214,510.86,0.00011694,2]
[398471494,1765704289635,583.84,0.00012127,2]
[398471495,1765704290039,656.82,0.0001256,2]
[398471496,1765704290436,729.8,0.00012993,2]
[398471498,1765704363198,150.0,9.134e-05,2]
[398471499,1765704364106,150.0,9.569e-05,2]
[398471500,1765704364529,150.0,0.00010003,2]
[398471501,1765704364932,150.0,0.00010438,2]
[398471502,1765704365327,150.0,0.00010873,2]
[398471503,1765704365783,150.0,0.00011308,2]
[398471504,1765704366219,150.0,0.00011743,2]
[398471505,1765704366586,166.9,0.00012178,2]
[398471506,1765704367014,187.76,0.00012613,2]
[398471507,1765704367839,208.62,0.00013048,2]
[398471569,1765704632343,-166.54341327,0.00018082,2]
[398471571,1765704632353,-83.45658673,0.00018082,2]
[398471573,1765704632367,-310.21679657,0.00018082,2]
[398471574,1765704632378,-874.63818407,0.00018082,2]
[398471575,1765704638300,-781.84131774,0.00018082,2]
[398471576,1765704638311,-537.23411489,0.00018082,2]
[398471577,1765704638320,-579.21847775,0.00019668,2]
[398471602,1765704643395,-272.83182917,0.00019668,2]
[398471603,1765704643406,-297.65922931,0.00019668,2]
[398471604,1765704643506,-192.39406178,0.00019668,2]
[398471605,1765704643516,-198.08824625,0.00019712,2]
[398471606,1765704643526,-300.0,0.00019765,2]
[398471607,1765704643536,-1200.0,0.00019765,2]
[398471608,1765704643547,-21350.88242986,0.00019766,2]
[398471609,1765704643559,-5910.00008699,0.00019766,2]
[398471610,1765704643571,-4381.53923045,0.00019766,2]
[398471642,1765704646333,-9564.61901935,0.00019766,2]
[398471643,1765704646343,-415.70422122,0.00019769,2]
[398471644,1765704646352,-4050.53440814,0.0001977,2]
[398471645,1765704646363,-1437.1938843,0.0001977,2]
[398471646,1765704646912,-1411.95357189,0.0001977,2]
[398471647,1765704662142,157.86,0.000134,2]
[398471648,1765704686868,150.0,9.672e-05,2]
[398471649,1765704687254,150.0,0.00010132,2]
[398471650,1765704687685,150.0,0.00010593,2]
[398471651,1765704688102,150.0,0.00011054,2]
[398471653,1765704752810,150.0,9.244e-05,2]
[398471654,1765704753222,150.0,9.684e-05,2]
[398471655,1765704753626,150.0,0.00010124,2]
[398471656,1765704754030,150.0,0.00010564,2]
[398471657,1765704754446,150.0,0.00011004,2]
[398471658,1765704754880,150.0,0.00011445,2]
[398471690,1765705805084,774.71179821,0.00014199,2]
[398471691,1765705805106,6102.42346434,0.00014199,2]
[398471697,1765705832397,-667.0,0.00016921,2]
[398471698,1765705832406,-500.0,0.00016921,2]
[398471699,1765705832416,-166.75254501,0.00017367,2]
[398471700,1765705832425,-500.0,0.00017812,2]
[398471701,1765705832436,-500.0,0.00018703,2]
[398471702,1765705832449,-208.176897,0.0001881,2]
[398471703,1765705832458,-2603.49,0.00019,2]
[398471704,1765705832467,-196.76800311,0.00019367,2]
[398471705,1765705832476,-198.08824625,0.00019504,2]
[398471706,1765705832486,-1174.34064825,0.00019566,2]
[398471707,1765705832495,-507.70937338,0.00019638,2]
[398471708,1765705832504,-500.0,0.00019664,2]
[398471709,1765705832514,-504.53973729,0.00019664,2]
[398471710,1765705832523,-300.0,0.00019664,2]
[398471711,1765705832532,-1200.0,0.00019664,2]
[398471712,1765705832542,-6254.90783399,0.00019666,2]
[398471713,1765705832551,-270.088,0.00019669,2]
[398471714,1765705832561,-290.99295485,0.00019669,2]
[398471715,1765705832570,-1712.60793595,0.0001967,3]
[398471716,1765705832581,-967.57212528,0.0001967,3]
[398471717,1765705832600,-258.22366975,0.0001967,3]
[398471718,1765705832610,-1333.37,0.0001967,3]
[398471719,1765705832622,-918.8667128,0.0001967,3]
[398471720,1765705832632,-1408.16565383,0.0001967,2]
[398471721,1765705838481,-750.0,0.0001967,2]
[398471722,1765705838494,-1896.94150928,0.0001967,2]
[398471723,1765705838534,-4612.84910141,0.0001967,2]
[398471724,1765705838587,-2260.32539818,0.0001967,2]
[398471765,1765705843642,-12593.76840301,0.0001967,2]
[398471769,1765705846566,-8035.74999984,0.0001967,2]
[398471770,1765705846603,-1801.77212347,0.0001967,2]
[398471771,1765705910155,150.0,9.038e-05,2]
[398471772,1765705910624,150.0,9.468e-05,2]
[398471773,1765705911944,150.0,9.898e-05,2]
[398471774,1765705912437,150.0,0.00010329,2]
[398471775,1765705912881,162.29,0.00010759,2]
[398471776,1765705914010,194.75,0.0001119,2]
[398471777,1765705914752,227.2,0.0001162,2]
[398471778,1765705914913,259.66,0.0001205,2]
[398471779,1765705915745,292.12,0.00012481,2]
[398471780,1765705916578,324.58,0.00012911,2]
[398471781,1765705922314,163.0,0.000134,2]
[398471782,1765705922627,163.0,0.000136,2]
[398471783,1765705922909,163.0,0.000138,2]
[398471784,1765705923614,1347.98653566,0.00016,2]
[398471785,1765705923635,8652.01346434,0.00016,2]
[398471786,1765705923996,162.99,0.00013417,2]
[398471787,1765705982117,163.0,0.000134,2]
[398471788,1765705988420,150.0,9.01e-05,2]